bitfinex-derivatives/quotes_SOLF0:USTF0_20241010
["timestamp","ask_amount","ask_price","bid_price","bid_amount"]
[1728575940640,5.14582,138.65,138.61,3.6105]
[1728575941142,1.53612,138.65,138.61,3.6105]
[1728575941349,3.6099,138.64,138.61,3.6105]
[1728575942638,1.53612,138.65,138.61,3.6105]
[1728575942839,1.53612,138.65,138.62,3.6101]
[1728575943033,1.53612,138.65,138.59,17.35]
[1728575943034,0.12502,138.65,138.59,17.35]
[1728575943342,0.12502,138.65,138.63,3.61]
[1728575944736,0.12502,138.65,138.64,3.6098]
[1728575946740,0.12502,138.65,138.64,14.6998]
[1728575947542,0.12502,138.65,138.6,1.4256]
[1728575947743,11.21502,138.65,138.57,1.4386]
[1728575947938,11.09,138.63,138.58,11.09]
[1728575948143,11.09,138.62,138.57,1.4386]
[1728575948838,11.09,138.62,138.58,11.09]
[1728575949039,3.6108,138.61,138.58,14.7012]
[1728575949441,11.09,138.63,138.58,14.7012]
[1728575950148,3.6108,138.61,138.58,14.7012]
[1728575950548,3.6108,138.61,138.58,3.6112]
[1728575953146,3.6104,138.62,138.59,3.6111]
[1728575955041,17.34,138.64,138.57,1.4386]
[1728575955237,3.6102,138.63,138.6,3.6107]
[1728575955546,17.34,138.64,138.57,1.4386]
[1728575955736,3.6104,138.62,138.59,3.611]
[1728575956544,3.6102,138.63,138.57,1.4386]
[1728575956750,3.6102,138.63,138.6,3.6109]
[1728575959245,17.34,138.64,138.57,1.4386]
[1728575959751,5.88502,138.65,138.57,18.7786]
[1728575960056,0.12502,138.65,138.57,18.7786]
[1728575960249,0.12502,138.65,138.6,17.34]
[1728575960545,0.12502,138.65,138.61,5.76]
[1728575960853,0.12502,138.65,138.63,3.61]
[1728575961349,3.73462,138.65,138.62,3.6102]
[1728575963250,0.12502,138.65,138.61,5.76]
[1728575965053,3.73482,138.65,138.62,3.6102]
[1728575966963,3.73482,138.65,138.6,23.1]
[1728575967159,3.73482,138.65,138.63,3.6101]
[1728575968560,0.12502,138.65,138.57,1.4386]
[1728575968762,3.6111,138.6,138.57,7.1986]
[1728575968959,23.22502,138.65,138.57,7.1986]
[1728575969361,3.6105,138.62,138.59,3.6109]
[1728575969662,23.22502,138.65,138.57,7.1986]
[1728575970056,23.22502,138.65,138.59,3.611]
[1728575970557,11.1,138.63,138.59,3.611]
[1728575970957,3.6105,138.62,138.59,3.611]
[1728575971761,3.6108,138.61,138.58,11.1]
[1728575972152,5.88502,138.65,138.6,11.1]
[1728575972360,5.88502,138.65,138.62,11.1]
[1728575972565,0.12502,138.65,138.62,11.1]
[1728575973062,0.12502,138.65,138.57,7.1986]
[1728575973364,0.12502,138.65,138.61,11.1]
[1728575973567,0.12502,138.65,138.62,11.1]
[1728575974065,0.12502,138.65,138.63,3.6101]
[1728575974751,0.12502,138.65,138.63,11.1]
[1728575974958,0.12502,138.65,138.63,14.71]
[1728575976163,0.12502,138.71,138.64,11.1]
[1728575976462,0.12502,138.71,138.68,11.1]
[1728575977257,3.73312,138.71,138.68,11.1]
[1728575977664,0.12502,138.71,138.67,11.1]
[1728575977968,3.6083,138.7,138.67,11.1]
[1728575978468,3.6085,138.69,138.67,11.1]
[1728575979565,0.12502,138.71,138.67,11.1]
[1728575979760,3.6084,138.7,138.67,11.1]
[1728575980153,0.12502,138.71,138.62,6.4108]
[1728575980154,3.6095,138.66,138.62,6.4108]
[1728575980369,3.6095,138.66,138.63,11.1]
[1728575980861,3.6091,138.67,138.63,14.71]
[1728575981263,3.6091,138.67,138.64,11.1]
[1728575981671,3.6089,138.68,138.65,11.1]
[1728575981864,16.86,138.7,138.65,11.1]
[1728575982160,3.6088,138.68,138.65,14.7094]
[1728575982366,3.6088,138.68,138.65,11.1]
[1728575984467,3.6088,138.68,138.65,14.7095]
[1728575988064,3.6088,138.68,138.65,3.6095]
[1728575988264,3.6088,138.68,138.65,14.7095]
[1728575988569,3.6088,138.68,138.65,11.1]
[1728575989769,3.6087,138.69,138.65,14.7094]
[1728575990169,5.76,138.7,138.65,14.7094]
[1728575990365,3.6088,138.69,138.65,14.7094]
[1728575990570,11.1,138.69,138.64,14.7096]
[1728575990871,3.6092,138.67,138.63,16.86]
[1728575991468,5.76,138.7,138.64,11.1]
[1728575991666,3.6088,138.68,138.65,11.1]
[1728575992069,3.6088,138.68,138.65,14.7094]
[1728575992377,3.6087,138.69,138.65,14.7094]
[1728575992572,3.6087,138.69,138.66,3.6093]
[1728575993067,5.76,138.7,138.66,14.7093]
[1728575993271,9.3684,138.7,138.66,11.1]
[1728575993461,0.12502,138.71,138.68,11.1]
[1728575994169,3.73322,138.71,138.68,11.1]
[1728575994371,0.12502,138.71,138.68,11.1]
[1728575995267,3.6083,138.7,138.68,11.1]
[1728575999572,0.12502,138.71,138.68,11.1]
[1728575999765,3.73302,138.71,138.68,14.7086]
[1728576000169,3.73302,138.71,138.68,11.1]
[1728576000376,0.12502,138.71,138.68,11.1]
[1728576000881,3.6083,138.7,138.68,11.1]
[1728576001575,3.6083,138.7,138.67,3.6088]
[1728576003977,0.12502,138.71,138.63,5.76]
[1728576004171,0.12502,138.71,138.67,11.1]
[1728576004371,0.12502,138.71,138.68,11.1]
[1728576005282,0.12502,138.71,138.62,2.8006]
[1728576005470,27.59502,138.71,138.62,13.9006]
[1728576005778,11.1,138.7,138.65,11.1]
[1728576006175,3.609,138.68,138.65,11.1]
[1728576006680,11.1,138.7,138.65,11.1]
[1728576007071,5.88502,138.71,138.66,11.1]
[1728576007279,11.1,138.69,138.64,16.86]
[1728576007480,3.609,138.68,138.64,20.4696]
[1728576007682,3.609,138.68,138.64,16.86]
[1728576007878,11.1,138.69,138.64,16.86]
[1728576008085,11.1,138.68,138.63,16.86]
[1728576008288,11.1,138.68,138.64,11.1]
[1728576008473,3.6091,138.67,138.64,11.1]
[1728576008981,11.1,138.68,138.64,11.1]
[1728576009578,3.6095,138.66,138.64,11.1]
[1728576010785,3.6095,138.66,138.64,14.7098]
[1728576011491,11.1,138.68,138.62,8.5406]
[1728576011678,11.1,138.68,138.62,13.9006]
[1728576011883,11.1,138.67,138.62,13.9006]
[1728576012186,3.61,138.64,138.61,11.1]
[1728576012382,11.1,138.62,138.59,0.12502]
[1728576012785,16.84,138.63,138.59,0.12502]
[1728576013084,3.6106,138.61,138.59,0.12502]
[1728576013488,16.84,138.63,138.59,0.12502]
[1728576014780,3.6104,138.62,138.59,0.12502]
[1728576014985,5.74,138.64,138.59,0.12502]
[1728576015184,11.1,138.61,138.59,0.12502]
[1728576015391,14.7109,138.6,138.59,0.12502]
[1728576015689,3.6109,138.6,138.59,0.12502]
[1728576015988,14.7109,138.6,138.59,0.12502]
[1728576016489,1.4124,138.65,138.59,0.12502]
[1728576016691,11.1,138.62,138.59,0.12502]
[1728576016988,11.1,138.61,138.59,0.12502]
[1728576017187,5.74,138.63,138.59,0.12502]
[1728576017492,11.1,138.62,138.59,0.12502]
[1728576017897,3.6108,138.61,138.59,0.12502]
[1728576020090,3.6099,138.64,138.61,3.6106]
[1728576020290,16.84,138.65,138.59,11.22502]
[1728576020593,9.3497,138.65,138.61,3.6104]
[1728576020799,16.84,138.67,138.61,11.1]
[1728576021091,79.2556,138.7,138.61,11.1]
[1728576021092,10.664,138.7,138.66,14.7091]
[1728576021282,10.664,138.7,138.67,11.1]
[1728576021485,10.664,138.7,138.66,3.6091]
[1728576021486,7.0556,138.7,138.66,11.1]
[1728576021685,3.6089,138.68,138.64,11.1]
[1728576022289,3.6089,138.68,138.65,3.6096]
[1728576022693,3.6089,138.68,138.65,14.7096]
[1728576022888,7.0556,138.7,138.65,11.1]
[1728576023096,3.6086,138.69,138.65,11.1]
[1728576023491,3.6086,138.69,138.65,14.7094]
[1728576023800,3.6088,138.68,138.65,14.7094]
[1728576024797,3.6088,138.68,138.61,5.74]
[1728576024997,1.3156,138.7,138.65,11.1]
[1728576025300,11.1,138.69,138.61,5.74]
[1728576025503,11.1,138.69,138.64,14.7098]
[1728576025691,11.1,138.69,138.61,5.74]
[1728576025901,11.1,138.69,138.64,11.1]
[1728576026202,3.6097,138.65,138.61,11.1]
[1728576026407,11.1,138.66,138.61,11.1]
[1728576026595,11.1,138.66,138.61,14.7104]
[1728576026798,3.6098,138.65,138.61,14.7104]
[1728576027000,11.1,138.66,138.61,14.7104]
[1728576027802,3.6098,138.65,138.61,14.7104]
[1728576027997,11.1,138.66,138.61,14.7104]
[1728576028197,5.74,138.67,138.59,5.86502]
[1728576028198,11.1,138.65,138.6,11.1]
[1728576028599,3.6103,138.63,138.6,11.1]
[1728576028901,3.6103,138.63,138.59,14.83602]
[1728576029493,11.1,138.64,138.59,0.12502]
[1728576029695,11.1,138.62,138.59,0.12502]
[1728576029896,11.1,138.61,138.59,0.12502]
[1728576030096,3.6109,138.6,138.59,0.12502]
[1728576032600,3.6106,138.62,138.59,0.12502]
[1728576033605,3.6107,138.61,138.59,0.12502]
[1728576035005,11.1,138.6,138.59,0.12502]
[1728576035209,14.7109,138.6,138.59,0.12502]
[1728576035503,3.6109,138.6,138.59,0.12502]
[1728576035699,5.0305,138.62,138.59,11.22502]
[1728576035903,5.74,138.63,138.6,11.1]
[1728576036298,11.1,138.64,138.59,0.12502]
[1728576036507,5.76,138.65,138.61,11.1]
[1728576037011,3.61,138.64,138.61,11.1]
[1728576037307,11.1,138.64,138.6,11.1]
[1728576037610,5.76,138.65,138.61,11.1]
[1728576037905,5.76,138.65,138.62,11.1]
[1728576038106,3.6094,138.66,138.62,14.7101]
[1728576038308,23.21902,138.71,138.65,11.1]
[1728576038507,9.3687,138.69,138.65,14.7095]
[1728576038704,12.60902,138.71,138.65,14.7095]
[1728576039004,3.6087,138.69,138.65,14.7095]
[1728576039206,0.12502,138.71,138.68,11.1]
[1728576040007,3.73322,138.71,138.68,11.1]
[1728576040507,0.12502,138.71,138.68,17.34]
[1728576041208,0.12502,138.71,138.69,3.6085]
[1728576041807,0.12502,138.71,138.68,17.34]
[1728576042010,0.12502,138.71,138.7,3.6083]
[1728576042409,0.12502,138.71,138.68,20.9486]
[1728576042618,0.12502,138.71,138.68,17.34]
[1728576042806,0.12502,138.71,138.7,17.34]
[1728576043208,0.12502,138.71,138.7,20.9483]
[1728576043403,1.4426,138.76,138.7,17.34]
[1728576043806,3.6069,138.76,138.72,3.6077]
[1728576044304,0.12502,138.77,138.73,17.34]
[1728576045013,0.12502,138.77,138.74,3.6071]
[1728576045213,0.12502,138.77,138.73,17.34]
[1728576045609,0.12502,138.77,138.75,3.6068]
[1728576046110,0.12502,138.77,138.72,17.34]
[1728576046417,3.73162,138.77,138.73,3.6074]
[1728576047411,3.73162,138.77,138.72,17.34]
[1728576047412,0.12502,138.77,138.72,17.34]
[1728576047615,3.6067,138.76,138.72,17.34]
[1728576048219,0.12502,138.77,138.71,5.74]
[1728576048921,3.6068,138.76,138.72,3.6077]
[1728576050134,0.12502,138.77,138.72,3.6077]
[1728576050326,3.607,138.75,138.72,3.6077]
[1728576050725,0.12502,138.77,138.72,3.6077]
[1728576050925,0.12502,138.77,138.71,9.3479]
[1728576051434,3.6071,138.75,138.71,3.6079]
[1728576051631,5.74,138.76,138.7,17.34]
[1728576052132,3.6071,138.75,138.7,17.34]
[1728576052631,3.6071,138.75,138.71,3.6079]
[1728576053632,3.6073,138.74,138.71,3.6079]
[1728576054420,3.6077,138.73,138.7,20.9482]
[1728576054824,5.74,138.76,138.7,17.34]
[1728576055030,3.6074,138.74,138.71,3.6079]
[1728576055228,3.6074,138.74,138.7,17.34]
[1728576055229,5.74,138.76,138.7,17.34]
[1728576055630,3.6078,138.72,138.7,17.34]
[1728576055929,5.74,138.76,138.7,17.34]
[1728576056134,3.6076,138.73,138.7,17.34]
[1728576056729,3.6076,138.73,138.7,20.9482]
[1728576057930,5.74,138.76,138.7,17.34]
[1728576058431,5.74,138.76,138.71,3.6078]
[1728576059131,3.6074,138.74,138.7,20.9481]
[1728576059537,3.6074,138.74,138.7,17.34]
[1728576059837,7.27147335,138.74,138.7,17.34]
[1728576060229,3.6074,138.74,138.71,3.6079]
[1728576060432,3.6076,138.73,138.7,17.34]
[1728576060732,11.1,138.75,138.7,11.1]
[1728576060938,16.84,138.76,138.71,11.1]
[1728576061136,3.59938622,138.75,138.73,11.1]
[1728576061832,3.59938622,138.75,138.67,9.8605]
[1728576062033,3.6074,138.74,138.71,11.1]
[1728576062435,3.59938622,138.75,138.67,9.8605]
[1728576062633,3.59938622,138.75,138.73,11.1]
[1728576063737,3.6073,138.74,138.73,11.1]
[1728576064536,7.20648622,138.75,138.73,11.1]
[1728576066238,9.3469,138.76,138.73,11.1]
[1728576066434,9.3469,138.76,138.73,14.7074]
[1728576066737,0.12502,138.77,138.75,11.1]
[1728576066938,0.12502,138.77,138.76,11.1]
[1728576068342,0.12502,138.77,138.72,1.4315]
[1728576068545,3.61989367,138.76,138.72,12.5315]
[1728576069036,0.12502,138.77,138.73,11.1]
[1728576069238,0.12502,138.77,138.75,11.1]
[1728576069736,3.73162,138.77,138.75,11.1]
[1728576070441,0.12502,138.77,138.76,11.1]
[1728576072640,0.12502,138.77,138.75,11.1]
[1728576072844,0.12502,138.77,138.73,1.425]
[1728576073042,0.12502,138.77,138.74,3.6071]
[1728576073240,0.12502,138.77,138.73,1.425]
[1728576073540,0.12502,138.77,138.72,7.1715]
[1728576074137,0.12502,138.77,138.73,3.6075]
[1728576074138,3.6068,138.76,138.73,3.6075]
[1728576075442,3.57165389,138.76,138.72,7.1715]
[1728576075648,7.17855389,138.76,138.72,10.7791]
[1728576075838,7.17855389,138.76,138.72,5.0391]
[1728576076145,3.57165389,138.76,138.72,5.0391]
[1728576076933,3.6071,138.75,138.72,1.4315]
[1728576077149,0.12502,138.77,138.71,20.9379]
[1728576078047,3.6071,138.75,138.71,17.33]
[1728576078345,3.53618836,138.76,138.69,5.74]
[1728576078548,3.6079,138.72,138.68,2.7073]
[1728576078740,9.34510092,138.76,138.68,23.6458]
[1728576079043,10.79430092,138.76,138.68,23.6458]
[1728576079242,3.6082,138.71,138.68,23.6458]
[1728576079842,10.79430092,138.76,138.59,17.45502]
[1728576079843,3.6085,138.7,138.66,5.74]
[1728576080239,17.33,138.74,138.66,9.3493]
[1728576080441,17.33,138.74,138.66,5.74]
[1728576080745,49.83430092,138.76,138.69,3.6084]
[1728576080935,3.6077,138.73,138.69,3.6084]
[1728576081141,22.38430092,138.76,138.67,17.33]
[1728576081338,22.38430092,138.76,138.66,5.74]
[1728576081339,5.74,138.74,138.69,17.33]
[1728576081539,5.05430092,138.76,138.69,17.33]
[1728576081846,10.79430092,138.76,138.7,3.6082]
[1728576082145,3.6074,138.74,138.7,3.6082]
[1728576082346,10.79430092,138.76,138.7,17.33]
[1728576082537,3.6071,138.75,138.71,3.608]
[1728576082742,5.74,138.76,138.73,17.33]
[1728576083851,0.12502,138.77,138.74,17.33]
[1728576084242,0.12502,138.77,138.75,3.6068]
[1728576084449,0.12502,138.77,138.74,17.33]
[1728576084949,0.12502,138.77,138.75,3.6068]
[1728576085345,0.12502,138.77,138.74,17.33]
[1728576086152,0.12502,138.77,138.76,3.6067]
[1728576087149,3.68141309,138.83,138.76,17.33]
[1728576087353,4.87595672,138.82,138.78,3.6062]
[1728576087554,3.6053,138.82,138.78,3.6062]
[1728576087752,3.6053,138.82,138.77,3.6062]
[1728576087951,9.47002,138.83,138.76,17.33]
[1728576088151,1.27049576,138.82,138.76,17.33]
[1728576088353,1.27049576,138.82,138.79,3.6059]
[1728576088549,1.27049576,138.82,138.78,17.33]
[1728576088550,3.6053,138.82,138.78,17.33]
[1728576088742,9.56204666,138.83,138.78,17.33]
[1728576089255,3.6056,138.81,138.78,17.33]
[1728576089652,3.6056,138.81,138.78,20.9362]
[1728576090355,3.6054,138.82,138.78,20.9362]
[1728576091852,9.56204666,138.83,138.79,3.6059]
[1728576091853,13.16704666,138.83,138.79,3.6059]
[1728576092555,3.82204666,138.83,138.78,17.33]
[1728576092759,3.82204666,138.83,138.78,20.936]
[1728576093644,3.6053,138.82,138.78,20.936]
[1728576094755,3.82204666,138.83,138.74,17.33]
[1728576094959,3.82204666,138.83,138.75,5.74]
[1728576095148,3.82204666,138.83,138.76,17.33]
[1728576095349,0.12502,138.83,138.78,17.33]
[1728576095549,0.12502,138.83,138.8,17.33]
[1728576095753,3.73002,138.83,138.8,17.33]
[1728576096559,3.73002,138.83,138.8,20.9357]
[1728576097865,3.73002,138.83,138.8,17.33]
[1728576098663,0.12502,138.83,138.82,17.33]
[1728576099353,3.72992,138.83,138.8,23.7616]
[1728576099550,0.12502,138.83,138.8,20.156]
[1728576099958,0.12502,138.83,138.8,1.3991]
[1728576099959,3.6052,138.82,138.8,1.3991]
[1728576100264,0.12502,138.83,138.79,5.74]
[1728576100763,0.12502,138.83,138.78,17.33]
[1728576100957,3.6056,138.81,138.78,17.33]
[1728576102156,3.6056,138.81,138.78,20.9361]
[1728576102558,0.12502,138.83,138.78,17.33]
[1728576102763,3.6056,138.81,138.78,17.33]
[1728576103056,0.12502,138.83,138.78,17.33]
[1728576104459,0.12502,138.83,138.79,11.08]
[1728576105057,0.12502,138.83,138.8,11.08]
[1728576105268,3.6054,138.81,138.8,11.08]
[1728576106263,3.6053,138.82,138.8,11.08]
[1728576106559,0.12502,138.83,138.81,11.08]
[1728576107359,0.12502,138.83,138.82,11.08]
[1728576108065,0.12502,138.89,138.82,11.08]
[1728576108066,5.86502,138.89,138.83,3.6047]
[1728576108362,5.86502,138.89,138.85,11.08]
[1728576108363,3.604,138.87,138.85,11.08]
[1728576108565,3.604,138.87,138.83,20.9047]
[1728576108973,0.12502,138.89,138.83,17.3]
[1728576109157,0.12502,138.89,138.85,17.3]
[1728576109559,0.12502,138.89,138.86,3.604]
[1728576110259,0.12502,138.89,138.87,17.3]
[1728576110464,0.12502,138.89,138.87,20.9038]
[1728576110967,0.12502,138.89,138.87,17.3]
[1728576112855,0.12502,138.89,138.88,17.3]
[1728576114171,3.6036,138.88,138.85,17.3]
[1728576114368,0.12502,138.89,138.85,17.3]
[1728576114769,3.72852,138.89,138.85,20.9042]
[1728576119279,3.72852,138.89,138.86,3.6041]
[1728576119476,3.6036,138.88,138.85,17.3]
[1728576119873,0.12502,138.89,138.85,17.3]
[1728576120474,5.86502,138.89,138.83,17.3]
[1728576120669,3.6042,138.86,138.83,17.3]
[1728576120873,27.52502,138.89,138.79,3.6057]
[1728576121082,3.6042,138.86,138.8,17.3]
[1728576121276,5.74,138.85,138.8,17.3]
[1728576121585,3.57082925,138.84,138.8,20.9055]
[1728576122175,5.74,138.85,138.81,3.6053]
[1728576122383,9.25864481,138.85,138.82,17.3]
[1728576122983,12.86314481,138.85,138.82,20.9051]
[1728576123488,12.86314481,138.85,138.82,17.3]
[1728576124282,9.25864481,138.85,138.82,20.905]
[1728576124878,12.86314481,138.85,138.82,20.9051]
[1728576125182,12.86314481,138.85,138.82,17.3]
[1728576125977,7.1003,138.88,138.84,17.3]
[1728576126379,1.3603,138.88,138.84,17.3]
[1728576126886,3.6037,138.88,138.84,20.9045]
[1728576127181,0.12502,138.89,138.87,17.3]
[1728576127483,0.12502,138.89,138.88,3.6036]
[1728576127685,3.57211548,138.93,138.87,17.3]
[1728576127981,0.12502,138.95,138.9,17.3]
[1728576128279,3.67838611,138.95,138.87,1.3451]
[1728576128478,0.12502,138.95,138.88,17.3]
[1728576128983,3.65039367,138.95,138.88,17.3]
[1728576129382,3.6026,138.92,138.88,17.3]
[1728576129584,3.65039367,138.95,138.88,17.3]
[1728576129880,1.2694096,138.94,138.87,17.3]
[1728576130480,3.6023,138.93,138.89,17.3]
[1728576131180,3.6023,138.93,138.88,3.6036]
[1728576131384,3.6024,138.93,138.87,17.3]
[1728576131586,3.65039367,138.95,138.88,17.3]
[1728576132180,3.65039367,138.95,138.9,17.3]
[1728576132676,3.6021,138.94,138.9,17.3]
[1728576134085,9.45039367,138.95,138.9,17.3]
[1728576134391,9.45039367,138.95,138.88,17.3]
[1728576134780,3.6023,138.93,138.89,3.6033]
[1728576134981,9.45039367,138.95,138.89,3.6033]
[1728576135388,3.6022,138.94,138.89,3.6033]
[1728576135587,3.6022,138.94,138.9,17.3]
[1728576136088,9.45039367,138.95,138.9,20.9031]
[1728576136488,9.45039367,138.95,138.9,3.6031]
[1728576136795,9.45039367,138.95,138.91,17.3]
[1728576137595,13.05219367,138.95,138.91,17.3]
[1728576137795,9.45039367,138.95,138.91,17.3]
[1728576138094,3.6023,138.94,138.91,17.3]
[1728576138295,9.45039367,138.95,138.88,1.3894]
[1728576138495,11.08,138.94,138.89,11.08]
[1728576138898,9.45039367,138.95,138.92,11.08]
[1728576139095,3.6023,138.94,138.92,11.08]
[1728576139490,9.45039367,138.95,138.92,11.08]
[1728576139691,3.6022,138.94,138.92,11.08]
[1728576140392,3.6022,138.94,138.93,11.08]
[1728576141092,3.6025,138.93,138.91,11.08]
[1728576141787,9.45039367,138.95,138.91,11.08]
[1728576141991,3.6022,138.94,138.91,11.08]
[1728576142490,3.62349028,138.94,138.91,11.08]
[1728576143097,7.22569028,138.94,138.91,11.08]
[1728576143299,3.62349028,138.94,138.89,3.6032]
[1728576143596,16.98502,138.95,138.9,11.08]
[1728576143994,3.6025,138.93,138.91,11.08]
[1728576144608,3.6021,138.94,138.91,11.08]
[1728576145097,9.47157795,138.95,138.91,11.08]
[1728576145600,9.47157795,138.95,138.88,1.3894]
[1728576145601,9.47157795,138.95,138.92,11.08]
[1728576146302,3.6023,138.94,138.92,11.08]
[1728576146606,9.47157795,138.95,138.89,3.6032]
[1728576146802,9.47157795,138.95,138.91,11.08]
[1728576147496,42.21157795,138.95,138.88,1.3894]
[1728576147701,32.74,138.93,138.7,237.8242]
[1728576148001,3.6046,138.84,138.83,11.20502]
[1728576148206,7.27265041,138.84,138.83,0.12502]
[1728576148501,3.6046,138.84,138.83,0.12502]
[1728576148802,3.6045,138.85,138.83,11.20502]
[1728576149005,3.67057364,138.87,138.84,11.08]
[1728576149202,5.78,138.88,138.86,11.08]
[1728576149504,12.4866,138.92,138.87,11.08]
[1728576149505,5.78,138.9,138.87,11.08]
[1728576150399,9.3833,138.9,138.87,11.08]
[1728576151297,9.3833,138.9,138.86,3.6041]
[1728576151604,3.6035,138.89,138.85,3.6043]
[1728576151903,3.69157795,138.95,138.88,11.08]
[1728576152107,1.26941957,138.94,138.93,11.08]
[1728576152303,4.87141957,138.94,138.93,11.08]
[1728576152701,3.69157795,138.95,138.93,11.08]
[1728576152906,7.29337795,138.95,138.94,11.08]
[1728576153107,8.56273161,138.95,138.94,11.08]
[1728576154008,7.29337795,138.95,138.94,11.08]
[1728576154305,0.12502,138.95,138.94,11.08]
[1728576154505,0.12502,138.95,138.92,17.3]
[1728576154913,5.52598881,138.97,138.92,17.3]
[1728576155110,1.269207,138.96,138.91,17.3]
[1728576155414,1.269207,138.96,138.89,1.44362]
[1728576155415,1.269207,138.96,138.89,18.74362]
[1728576155606,1.269207,138.96,138.89,17.42502]
[1728576155813,21.66,138.95,138.89,0.12502]
[1728576156011,1.269207,138.94,138.89,0.12502]
[1728576156214,48.10911875,138.97,138.89,17.42502]
[1728576156517,1.26937694,138.96,138.89,17.42502]
[1728576157419,3.6021,138.94,138.89,21.02822]
[1728576157614,48.10911875,138.97,138.89,21.02822]
[1728576157817,3.6031,138.9,138.89,0.12502]
[1728576158010,5.78,138.93,138.89,0.12502]
[1728576158414,3.603,138.91,138.89,0.12502]
[1728576159013,3.6026,138.92,138.89,0.12502]
[1728576159217,5.78,138.93,138.89,0.12502]
[1728576160113,9.3824,138.93,138.89,3.72822]
[1728576160315,27.44,138.93,138.89,0.12502]
[1728576160509,5.78,138.93,138.89,0.12502]
[1728576160712,3.6027,138.92,138.89,0.12502]
[1728576160906,5.78,138.93,138.89,0.12502]
[1728576161417,3.6028,138.92,138.89,0.12502]
[1728576161617,27.44,138.93,138.89,0.12502]
[1728576161821,3.6031,138.9,138.89,0.12502]
[1728576162120,7.20538811,138.9,138.89,0.12502]
[1728576169622,28.86538811,138.9,138.89,0.12502]
[1728576171716,7.20538811,138.9,138.89,0.12502]
[1728576173932,3.62312994,138.97,138.89,17.42502]
[1728576174125,1.26935186,138.96,138.89,0.12502]
[1728576174327,17.3,138.95,138.89,0.12502]
[1728576174630,7.20935186,138.94,138.89,0.12502]
[1728576174830,3.603,138.91,138.89,0.12502]
[1728576175131,3.69183244,138.9,138.89,0.12502]
[1728576178921,3.6031,138.9,138.89,0.12502]
[1728576179228,3.55435371,138.9,138.89,0.12502]
[1728576179438,3.603,138.91,138.89,0.12502]
[1728576180430,3.6031,138.9,138.89,0.12502]
[1728576180626,7.24755225,138.9,138.89,0.12502]
[1728576182031,3.64445225,138.9,138.89,0.12502]
[1728576182231,11.07,138.92,138.89,0.12502]
[1728576182643,29.0302,138.94,138.89,11.19502]
[1728576182935,5.94,138.95,138.9,14.6729]
[1728576183129,1.26933196,138.94,138.9,14.6729]
[1728576183327,3.602,138.95,138.92,11.07]
[1728576183527,38.67,138.96,138.92,11.07]
[1728576183735,1.2693222,138.95,138.92,11.07]
[1728576183924,4.8713222,138.95,138.92,11.07]
[1728576184125,3.602,138.95,138.92,11.07]
[1728576184832,3.61650363,138.97,138.94,11.07]
[1728576185041,1.26920693,138.96,138.95,11.07]
[1728576185232,0.12502,139.01,138.95,11.07]